[Event "Titled Tuesday Blitz December 20 Early 2022"]
[White "Meri-Arabidze"]
[Black "AttilaTurzo"]
[WhiteElo "2730"]
[BlackElo "2578"]
[Result "0-1"]
[Round "04"]
[TimeControl "180+2"]
[Date "2022.12.20"]
[WhiteClock "0:00:01"]
[BlackClock "0:00:10"]

1. Nf3 {[%clk 0:02:56]}  Nf6 {[%clk 0:02:56]} 2. g3 {[%clk 0:02:56]}  e6 {[%clk 0:02:55]} 3. Bg2 {[%clk 0:02:57]}  d5 {[%clk 0:02:56]} 4. O-O {[%clk 0:02:57]}  Be7 {[%clk 0:02:57]} 5. d4 {[%clk 0:02:57]}  O-O {[%clk 0:02:57]} 6. c4 {[%clk 0:02:57]}  dxc4 {[%clk 0:02:55]} 7. Qc2 {[%clk 0:02:58]}  a6 {[%clk 0:02:54]} 8. a4 {[%clk 0:02:58]}  Bd7 {[%clk 0:02:53]} 9. Rd1 {[%clk 0:02:58]}  Bc6 {[%clk 0:02:53]} 10. Nc3 {[%clk 0:02:58]}  Nbd7 {[%clk 0:02:45]} 11. e4 {[%clk 0:02:57]}  b5 {[%clk 0:02:45]} 12. d5 {[%clk 0:02:51]}  exd5 {[%clk 0:02:45]} 13. exd5 {[%clk 0:02:50]}  Bb7 {[%clk 0:02:43]} 14. Ng5 {[%clk 0:02:32]}  Rb8 {[%clk 0:02:07]} 15. axb5 {[%clk 0:02:28]}  axb5 {[%clk 0:02:07]} 16. Nxb5 {[%clk 0:02:27]}  h6 {[%clk 0:02:01]} 17. Nh3 {[%clk 0:02:18]}  Nb6 {[%clk 0:01:59]} 18. Bf4 {[%clk 0:01:59]}  Bd6 {[%clk 0:01:32]} 19. Bxd6 {[%clk 0:01:50]}  cxd6 {[%clk 0:01:33]} 20. Nf4 {[%clk 0:01:51]}  Qd7 {[%clk 0:01:28]} 21. Na7 {[%clk 0:01:40]}  Ra8 {[%clk 0:01:18]} 22. Bh3 {[%clk 0:01:08]}  Qc7 {[%clk 0:01:15]} 23. Nb5 {[%clk 0:01:00]}  Qc5 {[%clk 0:01:15]} 24. Rxa8 {[%clk 0:00:46]}  Rxa8 {[%clk 0:01:02]} 25. Nc3 {[%clk 0:00:46]}  Nbxd5 {[%clk 0:00:59]} 26. Nfxd5 {[%clk 0:00:44]}  Nxd5 {[%clk 0:01:00]} 27. Bg2 {[%clk 0:00:21]}  Nb4 {[%clk 0:00:55]} 28. Qd2 {[%clk 0:00:15]}  Bxg2 {[%clk 0:00:51]} 29. Kxg2 {[%clk 0:00:16]}  Rd8 {[%clk 0:00:49]} 30. Ne4 {[%clk 0:00:14]}  Qc6 {[%clk 0:00:45]} 31. f3 {[%clk 0:00:14]}  Nd3 {[%clk 0:00:44]} 32. Nf2 {[%clk 0:00:10]}  Nxf2 {[%clk 0:00:41]} 33. Kxf2 {[%clk 0:00:11]}  d5 {[%clk 0:00:42]} 34. Qd4 {[%clk 0:00:11]}  Rb8 {[%clk 0:00:36]} 35. Rd2 {[%clk 0:00:10]}  Rb5 {[%clk 0:00:35]} 36. Kg2 {[%clk 0:00:10]}  Qc5 {[%clk 0:00:33]} 37. Qe5 {[%clk 0:00:08]}  Qc6 {[%clk 0:00:27]} 38. h4 {[%clk 0:00:08]}  Qe6 {[%clk 0:00:26]} 39. Qd4 {[%clk 0:00:07]}  h5 {[%clk 0:00:24]} 40. Kh2 {[%clk 0:00:06]}  g6 {[%clk 0:00:25]} 41. Kg2 {[%clk 0:00:07]}  Rb3 {[%clk 0:00:24]} 42. Qxd5 {[%clk 0:00:03]}  Qxd5 {[%clk 0:00:23]} 43. Rxd5 {[%clk 0:00:04]}  Rxb2+ {[%clk 0:00:24]} 44. Kh3 {[%clk 0:00:05]}  Rf2 {[%clk 0:00:20]} 45. f4 {[%clk 0:00:03]}  f5 {[%clk 0:00:18]} 46. Rc5 {[%clk 0:00:03]}  Rc2 {[%clk 0:00:18]} 47. Rc7 {[%clk 0:00:02]}  Kf8 {[%clk 0:00:16]} 48. Rc6 {[%clk 0:00:02]}  c3 {[%clk 0:00:16]} 49. Rc7 {[%clk 0:00:02]}  Ke8 {[%clk 0:00:14]} 50. Rc6 {[%clk 0:00:01]}  Kf7 {[%clk 0:00:14]} 51. Rc7+ {[%clk 0:00:02]}  Ke6 {[%clk 0:00:14]} 52. Rc6+ {[%clk 0:00:03]}  Kd5 {[%clk 0:00:14]} 53. Rxg6 {[%clk 0:00:03]}  Rd2 {[%clk 0:00:11]} 54. Rg8 {[%clk 0:00:03]}  c2 {[%clk 0:00:11]} 55. Rc8 {[%clk 0:00:03]}  Kd4 {[%clk 0:00:10]} 56. Rc7 {[%clk 0:00:03]}  Kd3 {[%clk 0:00:10]} 57. Rd7+ {[%clk 0:00:01]}  Ke2 {[%clk 0:00:10]} 58. Rc7 {[%clk 0:00:01]}  Kd1 {[%clk 0:00:10]} 0-1


[Site "https://www.chess.com"]

[Event "Titled Tuesday Blitz December 20 Early 2022"]
[White "MusicCityMaster"]
[Black "pedromartinez91"]
[WhiteElo "2329"]
[BlackElo "2488"]
[Result "0-1"]
[Round "04"]
[TimeControl "180+2"]
[Date "2022.12.20"]
[WhiteClock "0:00:08"]
[BlackClock "0:00:35"]

1. e4 {[%clk 0:03:00]}  c5 {[%clk 0:02:57]} 2. Nf3 {[%clk 0:03:00]}  Nc6 {[%clk 0:02:57]} 3. d3 {[%clk 0:03:01]}  Nf6 {[%clk 0:02:54]} 4. g3 {[%clk 0:03:01]}  d5 {[%clk 0:02:54]} 5. Nbd2 {[%clk 0:03:00]}  e5 {[%clk 0:02:52]} 6. Bg2 {[%clk 0:03:01]}  d4 {[%clk 0:02:52]} 7. O-O {[%clk 0:03:01]}  Bd6 {[%clk 0:02:51]} 8. Nc4 {[%clk 0:02:59]}  Be6 {[%clk 0:02:44]} 9. Nfd2 {[%clk 0:02:54]}  Bc7 {[%clk 0:02:33]} 10. a4 {[%clk 0:02:54]}  Nd7 {[%clk 0:02:27]} 11. f4 {[%clk 0:02:50]}  f6 {[%clk 0:02:27]} 12. f5 {[%clk 0:02:44]}  Bf7 {[%clk 0:02:27]} 13. b3 {[%clk 0:02:37]}  Qe7 {[%clk 0:02:26]} 14. Nf3 {[%clk 0:02:33]}  g5 {[%clk 0:02:16]} 15. Bd2 {[%clk 0:02:18]}  h5 {[%clk 0:02:15]} 16. a5 {[%clk 0:02:17]}  h4 {[%clk 0:01:48]} 17. g4 {[%clk 0:02:17]}  Qd8 {[%clk 0:01:41]} 18. h3 {[%clk 0:02:16]}  Bxc4 {[%clk 0:01:39]} 19. bxc4 {[%clk 0:02:11]}  Bxa5 {[%clk 0:01:39]} 20. Bxa5 {[%clk 0:02:09]}  Nxa5 {[%clk 0:01:39]} 21. Qb1 {[%clk 0:02:02]}  b6 {[%clk 0:01:32]} 22. Qb5 {[%clk 0:02:02]}  Qc7 {[%clk 0:01:30]} 23. Nd2 {[%clk 0:01:56]}  Nc6 {[%clk 0:01:30]} 24. Rfb1 {[%clk 0:01:53]}  Ke7 {[%clk 0:01:30]} 25. Bf3 {[%clk 0:01:42]}  Rhb8 {[%clk 0:01:29]} 26. Bd1 {[%clk 0:01:35]}  Kd6 {[%clk 0:01:29]} 27. Qb2 {[%clk 0:01:30]}  a6 {[%clk 0:01:28]} 28. Nb3 {[%clk 0:01:25]}  b5 {[%clk 0:01:17]} 29. cxb5 {[%clk 0:01:22]}  axb5 {[%clk 0:01:16]} 30. c3 {[%clk 0:01:19]}  dxc3 {[%clk 0:01:09]} 31. Qxc3 {[%clk 0:01:19]}  Nd4 {[%clk 0:01:08]} 32. Nxd4 {[%clk 0:01:13]}  exd4 {[%clk 0:01:09]} 33. Qb3 {[%clk 0:01:08]}  c4 {[%clk 0:01:01]} 34. Qb4+ {[%clk 0:01:02]}  Qc5 {[%clk 0:00:59]} 35. Rxa8 {[%clk 0:01:02]}  Rxa8 {[%clk 0:00:58]} 36. dxc4 {[%clk 0:00:53]}  bxc4 {[%clk 0:00:50]} 37. Qb7 {[%clk 0:00:49]}  d3+ {[%clk 0:00:47]} 38. Kh1 {[%clk 0:00:40]}  Rb8 {[%clk 0:00:46]} 39. Qa6+ {[%clk 0:00:39]}  Rb6 {[%clk 0:00:46]} 40. Rxb6+ {[%clk 0:00:37]}  Nxb6 {[%clk 0:00:47]} 41. Qb7 {[%clk 0:00:25]}  Ke5 {[%clk 0:00:43]} 42. Qb8+ {[%clk 0:00:22]}  Kd4 {[%clk 0:00:41]} 43. Qd8+ {[%clk 0:00:19]}  Ke3 {[%clk 0:00:40]} 44. Qxf6 {[%clk 0:00:19]}  Kd2 {[%clk 0:00:37]} 45. Bf3 {[%clk 0:00:18]}  Qe3 {[%clk 0:00:37]} 46. Qb2+ {[%clk 0:00:18]}  Ke1 {[%clk 0:00:34]} 47. Qb1+ {[%clk 0:00:18]}  Kf2 {[%clk 0:00:33]} 48. Qg1+ {[%clk 0:00:13]}  Kxf3 {[%clk 0:00:33]} 49. Qg2+ {[%clk 0:00:13]}  Kf4 {[%clk 0:00:33]} 50. f6 {[%clk 0:00:12]}  d2 {[%clk 0:00:33]} 51. f7 {[%clk 0:00:05]}  d1=Q+ {[%clk 0:00:32]} 52. Kh2 {[%clk 0:00:06]}  Qg3+ {[%clk 0:00:32]} 53. Qxg3+ {[%clk 0:00:06]}  hxg3+ {[%clk 0:00:33]} 54. Kg2 {[%clk 0:00:07]}  Qe2+ {[%clk 0:00:33]} 55. Kg1 {[%clk 0:00:07]}  Qf2+ {[%clk 0:00:34]} 56. Kh1 {[%clk 0:00:08]}  Qh2# {[%clk 0:00:35]} 0-1


[Site "https://www.chess.com"]

[Event "Titled Tuesday Blitz December 20 Early 2022"]
[White "Nau, Guenter"]
[Black "GuessChess_game"]
[WhiteFideId "4661419"]
[WhiteElo "2205"]
[BlackElo "2424"]
[Result "1-0"]
[Round "04"]
[TimeControl "180+2"]
[Date "2022.12.20"]
[WhiteClock "0:00:09"]
[BlackClock "0:00:02"]

1. d4 {[%clk 0:02:59]}  Nf6 {[%clk 0:02:58]} 2. c4 {[%clk 0:02:59]}  e6 {[%clk 0:02:57]} 3. Nc3 {[%clk 0:02:59]}  Bb4 {[%clk 0:02:57]} 4. Nf3 {[%clk 0:02:56]}  b6 {[%clk 0:02:54]} 5. Bg5 {[%clk 0:02:54]}  h6 {[%clk 0:02:49]} 6. Bh4 {[%clk 0:02:54]}  Bb7 {[%clk 0:02:48]} 7. Rc1 {[%clk 0:02:49]}  O-O {[%clk 0:02:45]} 8. e3 {[%clk 0:02:49]}  d6 {[%clk 0:02:37]} 9. a3 {[%clk 0:02:46]}  Bxc3+ {[%clk 0:02:37]} 10. Rxc3 {[%clk 0:02:46]}  Nbd7 {[%clk 0:02:36]} 11. h3 {[%clk 0:02:34]}  g5 {[%clk 0:02:34]} 12. Bg3 {[%clk 0:02:34]}  Ne4 {[%clk 0:02:34]} 13. Rc1 {[%clk 0:02:32]}  f5 {[%clk 0:02:31]} 14. Qc2 {[%clk 0:02:19]}  Qf6 {[%clk 0:02:28]} 15. Bh2 {[%clk 0:02:12]}  e5 {[%clk 0:01:57]} 16. c5 {[%clk 0:01:52]}  Bd5 {[%clk 0:01:40]} 17. Bc4 {[%clk 0:01:44]}  Bxc4 {[%clk 0:01:37]} 18. Qxc4+ {[%clk 0:01:44]}  Kg7 {[%clk 0:01:38]} 19. cxd6 {[%clk 0:01:41]}  cxd6 {[%clk 0:01:38]} 20. Qc7 {[%clk 0:01:11]}  Rf7 {[%clk 0:01:35]} 21. dxe5 {[%clk 0:01:11]}  Nxe5 {[%clk 0:01:34]} 22. Bxe5 {[%clk 0:01:02]}  dxe5 {[%clk 0:01:32]} 23. Qxe5 {[%clk 0:01:01]}  Qxe5 {[%clk 0:01:22]} 24. Nxe5 {[%clk 0:01:01]}  Re7 {[%clk 0:01:23]} 25. Nf3 {[%clk 0:00:38]}  f4 {[%clk 0:01:23]} 26. O-O {[%clk 0:00:38]}  fxe3 {[%clk 0:01:20]} 27. fxe3 {[%clk 0:00:39]}  Rae8 {[%clk 0:01:10]} 28. Nd4 {[%clk 0:00:37]}  Rd7 {[%clk 0:00:35]} 29. Nf5+ {[%clk 0:00:31]}  Kh7 {[%clk 0:00:25]} 30. Rfd1 {[%clk 0:00:30]}  Rxd1+ {[%clk 0:00:20]} 31. Rxd1 {[%clk 0:00:30]}  Re5 {[%clk 0:00:14]} 32. Rd7+ {[%clk 0:00:29]}  Kg6 {[%clk 0:00:14]} 33. Nd4 {[%clk 0:00:27]}  Nc5 {[%clk 0:00:13]} 34. Rxa7 {[%clk 0:00:20]}  Rxe3 {[%clk 0:00:13]} 35. Rc7 {[%clk 0:00:16]}  Rd3 {[%clk 0:00:10]} 36. Rc6+ {[%clk 0:00:15]}  Kf7 {[%clk 0:00:10]} 37. Nf3 {[%clk 0:00:14]}  Nd7 {[%clk 0:00:07]} 38. Rxh6 {[%clk 0:00:13]}  Rb3 {[%clk 0:00:07]} 39. Nxg5+ {[%clk 0:00:07]}  Kg7 {[%clk 0:00:06]} 40. Rh7+ {[%clk 0:00:08]}  Kg6 {[%clk 0:00:06]} 41. Rxd7 {[%clk 0:00:08]}  Kxg5 {[%clk 0:00:06]} 42. Rd2 {[%clk 0:00:08]}  Kh4 {[%clk 0:00:02]} 43. Kh2 {[%clk 0:00:08]}  Re3 {[%clk 0:00:03]} 44. g3+ {[%clk 0:00:07]}  Kg5 {[%clk 0:00:03]} 45. Kg2 {[%clk 0:00:08]}  Kf5 {[%clk 0:00:02]} 46. Kf2 {[%clk 0:00:08]}  Rb3 {[%clk 0:00:02]} 47. Kg2 {[%clk 0:00:07]}  Kg5 {[%clk 0:00:02]} 48. Kf2 {[%clk 0:00:07]}  Kf5 {[%clk 0:00:02]} 49. Kg2 {[%clk 0:00:07]}  Kg5 {[%clk 0:00:03]} 50. Kh2 {[%clk 0:00:08]}  Kf5 {[%clk 0:00:03]} 51. h4 {[%clk 0:00:08]}  Kg4 {[%clk 0:00:03]} 52. Rd4+ {[%clk 0:00:08]}  Kf3 {[%clk 0:00:04]} 53. Rb4 {[%clk 0:00:08]}  Rd3 {[%clk 0:00:02]} 54. Rxb6 {[%clk 0:00:08]}  Rd2+ {[%clk 0:00:02]} 55. Kh3 {[%clk 0:00:09]} 1-0


[Site "https://www.chess.com"]

[Event "Titled Tuesday Blitz December 20 Early 2022"]
[White "Nithisker, P"]
[Black "Vsevolod_Ovchinnikov"]
[WhiteFideId "33434786"]
[WhiteElo "2346"]
[BlackElo "2557"]
[Result "0-1"]
[Round "04"]
[TimeControl "180+2"]
[Date "2022.12.20"]
[WhiteClock "0:00:03"]
[BlackClock "0:00:03"]

1. d4 {[%clk 0:03:00]}  Nf6 {[%clk 0:02:57]} 2. c4 {[%clk 0:03:00]}  g6 {[%clk 0:02:57]} 3. Nc3 {[%clk 0:03:00]}  d5 {[%clk 0:02:58]} 4. Nf3 {[%clk 0:02:59]}  Bg7 {[%clk 0:02:58]} 5. Qb3 {[%clk 0:03:00]}  dxc4 {[%clk 0:02:58]} 6. Qxc4 {[%clk 0:03:01]}  O-O {[%clk 0:02:58]} 7. e4 {[%clk 0:03:01]}  a6 {[%clk 0:02:59]} 8. Qa4 {[%clk 0:03:01]}  Bg4 {[%clk 0:02:51]} 9. Be3 {[%clk 0:02:35]}  Bxf3 {[%clk 0:02:32]} 10. gxf3 {[%clk 0:02:36]}  Nbd7 {[%clk 0:02:33]} 11. Qb3 {[%clk 0:02:00]}  Rb8 {[%clk 0:02:23]} 12. O-O-O {[%clk 0:01:40]}  b5 {[%clk 0:02:14]} 13. Kb1 {[%clk 0:01:39]}  e6 {[%clk 0:02:02]} 14. f4 {[%clk 0:01:26]}  c5 {[%clk 0:01:43]} 15. dxc5 {[%clk 0:01:14]}  Qc7 {[%clk 0:01:39]} 16. e5 {[%clk 0:01:07]}  Ng4 {[%clk 0:01:36]} 17. Ne4 {[%clk 0:00:50]}  Nxe3 {[%clk 0:00:59]} 18. Qxe3 {[%clk 0:00:50]}  Rfc8 {[%clk 0:00:47]} 19. Rc1 {[%clk 0:00:49]}  Bh6 {[%clk 0:00:41]} 20. Bg2 {[%clk 0:00:39]}  Kh8 {[%clk 0:00:18]} 21. Nd6 {[%clk 0:00:36]}  Rf8 {[%clk 0:00:18]} 22. h4 {[%clk 0:00:34]}  f6 {[%clk 0:00:10]} 23. h5 {[%clk 0:00:24]}  g5 {[%clk 0:00:06]} 24. exf6 {[%clk 0:00:18]}  gxf4 {[%clk 0:00:06]} 25. Qxe6 {[%clk 0:00:17]}  Nxf6 {[%clk 0:00:06]} 26. Nf5 {[%clk 0:00:12]}  Bg5 {[%clk 0:00:07]} 27. c6 {[%clk 0:00:10]}  Rbe8 {[%clk 0:00:06]} 28. Qb3 {[%clk 0:00:08]}  Re2 {[%clk 0:00:05]} 29. Rhd1 {[%clk 0:00:07]}  Rxf2 {[%clk 0:00:05]} 30. Bh1 {[%clk 0:00:06]}  f3 {[%clk 0:00:05]} 31. Bxf3 {[%clk 0:00:05]}  Bxc1 {[%clk 0:00:05]} 32. Qc3 {[%clk 0:00:03]}  Bg5 {[%clk 0:00:03]} 0-1


[Site "https://www.chess.com"]

[Event "Titled Tuesday Blitz December 20 Early 2022"]
[White "NowInChess"]
[Black "emeli_chess"]
[WhiteElo "2177"]
[BlackElo "2405"]
[Result "0-1"]
[Round "04"]
[TimeControl "180+2"]
[Date "2022.12.20"]
[WhiteClock "0:00:01"]
[BlackClock "0:00:06"]

1. e4 {[%clk 0:03:00]}  c5 {[%clk 0:02:59]} 2. d3 {[%clk 0:03:00]}  d5 {[%clk 0:02:59]} 3. Nd2 {[%clk 0:02:59]}  Nc6 {[%clk 0:02:56]} 4. g3 {[%clk 0:02:59]}  Nf6 {[%clk 0:02:55]} 5. Bg2 {[%clk 0:02:59]}  dxe4 {[%clk 0:02:55]} 6. dxe4 {[%clk 0:02:59]}  e6 {[%clk 0:02:45]} 7. Ngf3 {[%clk 0:02:58]}  Be7 {[%clk 0:02:45]} 8. O-O {[%clk 0:02:58]}  O-O {[%clk 0:02:44]} 9. e5 {[%clk 0:02:58]}  Nd7 {[%clk 0:02:38]} 10. Re1 {[%clk 0:02:58]}  Qc7 {[%clk 0:02:38]} 11. Qe2 {[%clk 0:02:57]}  Nd4 {[%clk 0:02:34]} 12. Nxd4 {[%clk 0:02:38]}  cxd4 {[%clk 0:02:34]} 13. Nb3 {[%clk 0:02:23]}  Bb4 {[%clk 0:02:12]} 14. Bd2 {[%clk 0:02:09]}  Bxd2 {[%clk 0:02:11]} 15. Qxd2 {[%clk 0:01:59]}  Nxe5 {[%clk 0:02:04]} 16. Nxd4 {[%clk 0:01:41]}  Nc6 {[%clk 0:01:55]} 17. Nxc6 {[%clk 0:01:25]}  bxc6 {[%clk 0:01:54]} 18. c4 {[%clk 0:01:12]}  Rd8 {[%clk 0:01:48]} 19. Qc3 {[%clk 0:01:08]}  Bd7 {[%clk 0:01:47]} 20. c5 {[%clk 0:01:06]}  Be8 {[%clk 0:01:47]} 21. Rad1 {[%clk 0:01:05]}  Rxd1 {[%clk 0:01:45]} 22. Rxd1 {[%clk 0:01:05]}  Rd8 {[%clk 0:01:45]} 23. Qc2 {[%clk 0:00:54]}  f6 {[%clk 0:01:26]} 24. h4 {[%clk 0:00:50]}  e5 {[%clk 0:01:21]} 25. Rxd8 {[%clk 0:00:44]}  Qxd8 {[%clk 0:01:21]} 26. Qb3+ {[%clk 0:00:43]}  Bf7 {[%clk 0:01:16]} 27. Qb7 {[%clk 0:00:42]}  Bd5 {[%clk 0:01:13]} 28. Qxa7 {[%clk 0:00:32]}  Bxg2 {[%clk 0:01:12]} 29. Kxg2 {[%clk 0:00:33]}  Qd5+ {[%clk 0:01:12]} 30. Kh2 {[%clk 0:00:32]}  Qf3 {[%clk 0:00:58]} 31. Qb8+ {[%clk 0:00:32]}  Kf7 {[%clk 0:00:56]} 32. Qc7+ {[%clk 0:00:27]}  Kg6 {[%clk 0:00:55]} 33. Kg1 {[%clk 0:00:26]}  Qd1+ {[%clk 0:00:53]} 34. Kg2 {[%clk 0:00:25]}  Qd5+ {[%clk 0:00:53]} 35. Kh2 {[%clk 0:00:25]}  Qxc5 {[%clk 0:00:44]} 36. Kg2 {[%clk 0:00:18]}  Qd5+ {[%clk 0:00:44]} 37. Kh2 {[%clk 0:00:17]}  Qxa2 {[%clk 0:00:38]} 38. Qxc6 {[%clk 0:00:12]}  Qxb2 {[%clk 0:00:37]} 39. Qe4+ {[%clk 0:00:12]}  Kf7 {[%clk 0:00:35]} 40. Qd5+ {[%clk 0:00:13]}  Ke7 {[%clk 0:00:34]} 41. Qc5+ {[%clk 0:00:12]}  Ke6 {[%clk 0:00:33]} 42. Qc4+ {[%clk 0:00:12]}  Kd6 {[%clk 0:00:31]} 43. Qa6+ {[%clk 0:00:10]}  Kd5 {[%clk 0:00:30]} 44. Qa8+ {[%clk 0:00:09]}  Kd4 {[%clk 0:00:27]} 45. Qa7+ {[%clk 0:00:07]}  Ke4 {[%clk 0:00:20]} 46. Qe3+ {[%clk 0:00:06]}  Kd5 {[%clk 0:00:17]} 47. Qd3+ {[%clk 0:00:06]}  Qd4 {[%clk 0:00:16]} 48. Qf3+ {[%clk 0:00:05]}  e4 {[%clk 0:00:15]} 49. Qb3+ {[%clk 0:00:04]}  Ke5 {[%clk 0:00:15]} 50. Qb8+ {[%clk 0:00:02]}  Kf5 {[%clk 0:00:14]} 51. Qc8+ {[%clk 0:00:03]}  Kg6 {[%clk 0:00:13]} 52. Qe8+ {[%clk 0:00:03]}  Kh6 {[%clk 0:00:12]} 53. Qf7 {[%clk 0:00:02]}  Qxf2+ {[%clk 0:00:11]} 54. Kh3 {[%clk 0:00:03]}  Qf1+ {[%clk 0:00:11]} 55. Kh2 {[%clk 0:00:03]}  Qf5 {[%clk 0:00:10]} 56. Kg2 {[%clk 0:00:02]}  e3 {[%clk 0:00:09]} 57. Qc4 {[%clk 0:00:02]}  Qf2+ {[%clk 0:00:07]} 58. Kh3 {[%clk 0:00:01]}  e2 {[%clk 0:00:07]} 59. Qc1+ {[%clk 0:00:02]}  Kg6 {[%clk 0:00:06]} 60. Qc2+ {[%clk 0:00:02]}  Qf5+ {[%clk 0:00:06]} 61. g4 {[%clk 0:00:02]}  Qxc2 {[%clk 0:00:06]} 62. Kg3 {[%clk 0:00:02]}  e1=Q+ {[%clk 0:00:06]} 63. Kh3 {[%clk 0:00:01]}  Qe3# {[%clk 0:00:06]} 0-1


[Site "https://www.chess.com"]

[Event "Titled Tuesday Blitz December 20 Early 2022"]
[White "Patricks, Anastasia"]
[Black "Yurasova_Daria"]
[WhiteFideId "7101929"]
[WhiteElo "1778"]
[BlackElo "2502"]
[Result "1-0"]
[Round "04"]
[TimeControl "180+2"]
[Date "2022.12.20"]
[WhiteClock "0:00:26"]
[BlackClock "0:00:08"]

1. c4 {[%clk 0:03:00]}  c6 {[%clk 0:02:59]} 2. g3 {[%clk 0:03:00]}  d5 {[%clk 0:02:59]} 3. Bg2 {[%clk 0:03:00]}  Nf6 {[%clk 0:02:58]} 4. Nf3 {[%clk 0:03:00]}  Bf5 {[%clk 0:02:55]} 5. O-O {[%clk 0:03:00]}  e6 {[%clk 0:02:52]} 6. b3 {[%clk 0:02:59]}  Be7 {[%clk 0:02:51]} 7. Bb2 {[%clk 0:02:59]}  Nbd7 {[%clk 0:02:50]} 8. Nc3 {[%clk 0:03:00]}  O-O {[%clk 0:02:46]} 9. Rc1 {[%clk 0:03:00]}  h6 {[%clk 0:02:44]} 10. d4 {[%clk 0:02:56]}  a5 {[%clk 0:02:44]} 11. Re1 {[%clk 0:02:50]}  Ne4 {[%clk 0:02:40]} 12. c5 {[%clk 0:02:43]}  Nxc3 {[%clk 0:02:38]} 13. Bxc3 {[%clk 0:02:44]}  Be4 {[%clk 0:02:39]} 14. Bh3 {[%clk 0:02:43]}  Nf6 {[%clk 0:02:27]} 15. Ne5 {[%clk 0:02:37]}  Bh7 {[%clk 0:02:24]} 16. Bb2 {[%clk 0:02:31]}  a4 {[%clk 0:02:23]} 17. b4 {[%clk 0:02:31]}  Nd7 {[%clk 0:02:18]} 18. Nf3 {[%clk 0:02:24]}  Be4 {[%clk 0:02:09]} 19. Nd2 {[%clk 0:02:22]}  Bg6 {[%clk 0:02:09]} 20. a3 {[%clk 0:02:21]}  Bf6 {[%clk 0:02:04]} 21. f4 {[%clk 0:02:05]}  Re8 {[%clk 0:01:57]} 22. Nb1 {[%clk 0:02:00]}  h5 {[%clk 0:01:52]} 23. Nc3 {[%clk 0:01:57]}  Bf5 {[%clk 0:01:49]} 24. Bg2 {[%clk 0:01:48]}  h4 {[%clk 0:01:46]} 25. Nxa4 {[%clk 0:01:49]}  hxg3 {[%clk 0:01:45]} 26. hxg3 {[%clk 0:01:50]}  Be7 {[%clk 0:01:35]} 27. Qb3 {[%clk 0:01:46]}  Nf6 {[%clk 0:01:33]} 28. Nc3 {[%clk 0:01:41]}  Nh5 {[%clk 0:01:23]} 29. Nd1 {[%clk 0:01:38]}  Bf6 {[%clk 0:00:58]} 30. Nf2 {[%clk 0:01:36]}  Be4 {[%clk 0:00:50]} 31. Nxe4 {[%clk 0:01:19]}  dxe4 {[%clk 0:00:50]} 32. Rcd1 {[%clk 0:01:13]}  Qd5 {[%clk 0:00:27]} 33. Qe3 {[%clk 0:01:13]}  Qa2 {[%clk 0:00:21]} 34. Rd2 {[%clk 0:01:03]}  Rad8 {[%clk 0:00:18]} 35. Ra1 {[%clk 0:00:55]}  Qc4 {[%clk 0:00:17]} 36. Rc1 {[%clk 0:00:50]}  Qb5 {[%clk 0:00:16]} 37. g4 {[%clk 0:00:49]}  Nxf4 {[%clk 0:00:11]} 38. Qxf4 {[%clk 0:00:50]}  e3 {[%clk 0:00:12]} 39. Qxe3 {[%clk 0:00:45]}  e5 {[%clk 0:00:12]} 40. dxe5 {[%clk 0:00:41]}  Rxd2 {[%clk 0:00:12]} 41. Qxd2 {[%clk 0:00:41]}  Bxe5 {[%clk 0:00:13]} 42. Bxe5 {[%clk 0:00:40]}  Rxe5 {[%clk 0:00:14]} 43. Bf3 {[%clk 0:00:40]}  Re8 {[%clk 0:00:11]} 44. Qd7 {[%clk 0:00:38]}  Rf8 {[%clk 0:00:11]} 45. Kg2 {[%clk 0:00:34]}  Qa6 {[%clk 0:00:11]} 46. Qd3 {[%clk 0:00:26]}  Qa4 {[%clk 0:00:10]} 47. Rh1 {[%clk 0:00:26]}  Qa8 {[%clk 0:00:08]} 48. Qh7# {[%clk 0:00:26]} 1-0


[Site "https://www.chess.com"]

[Event "Titled Tuesday Blitz December 20 Early 2022"]
[White "Pietrek, Gerhard"]
[Black "Artem_0degov"]
[WhiteFideId "24631698"]
[WhiteElo "1596"]
[BlackElo "2661"]
[Result "0-1"]
[Round "04"]
[TimeControl "180+2"]
[Date "2022.12.20"]
[WhiteClock "0:00:06"]
[BlackClock "0:02:16"]

1. Nf3 {[%clk 0:03:00]}  d5 {[%clk 0:02:58]} 2. c4 {[%clk 0:03:00]}  e6 {[%clk 0:02:58]} 3. b3 {[%clk 0:02:59]}  Nf6 {[%clk 0:02:58]} 4. Bb2 {[%clk 0:02:59]}  c5 {[%clk 0:02:58]} 5. cxd5 {[%clk 0:02:58]}  exd5 {[%clk 0:02:59]} 6. d4 {[%clk 0:02:57]}  Nc6 {[%clk 0:03:00]} 7. e3 {[%clk 0:02:56]}  Be7 {[%clk 0:02:59]} 8. dxc5 {[%clk 0:02:55]}  Bxc5 {[%clk 0:02:58]} 9. Be2 {[%clk 0:02:55]}  O-O {[%clk 0:02:58]} 10. O-O {[%clk 0:02:54]}  Bg4 {[%clk 0:02:57]} 11. Nc3 {[%clk 0:02:54]}  a6 {[%clk 0:02:54]} 12. Rc1 {[%clk 0:02:52]}  Ba7 {[%clk 0:02:52]} 13. Na4 {[%clk 0:02:50]}  Ne4 {[%clk 0:02:47]} 14. Ne5 {[%clk 0:02:28]}  Bxe2 {[%clk 0:02:39]} 15. Qxe2 {[%clk 0:02:13]}  Nxe5 {[%clk 0:02:38]} 16. Bxe5 {[%clk 0:02:12]}  Re8 {[%clk 0:02:39]} 17. Bc7 {[%clk 0:02:09]}  Qf6 {[%clk 0:02:34]} 18. Qb2 {[%clk 0:01:56]}  d4 {[%clk 0:02:30]} 19. exd4 {[%clk 0:00:54]}  Bxd4 {[%clk 0:02:31]} 20. Qc2 {[%clk 0:00:38]}  b5 {[%clk 0:02:29]} 21. Rce1 {[%clk 0:00:24]}  Nxf2 {[%clk 0:02:24]} 22. Nb6 {[%clk 0:00:12]}  Rxe1 {[%clk 0:02:20]} 23. Rxe1 {[%clk 0:00:09]}  Nd3+ {[%clk 0:02:19]} 24. Kh1 {[%clk 0:00:08]}  Nxe1 {[%clk 0:02:17]} 25. Qe2 {[%clk 0:00:06]}  Bxb6 {[%clk 0:02:16]} 0-1


[Site "https://www.chess.com"]